fUSD/lending_fUSD_20250223
["ID","MTS","AMOUNT","RATE_DAILY","PERIOD"]
[354190716,1740341455647,-625.0,0.00016438,2]
[354190717,1740341455657,-562.5,0.00016438,2]
[354190718,1740341455667,-525.02,0.00016438,2]
[354190719,1740341455677,-500.0,0.00016438,2]
[354190720,1740341455687,-500.83673008,0.00016438,2]
[354190721,1740341455697,-520.83,0.00016438,2]
[354190722,1740341455706,-500.0,0.00016438,2]
[354190723,1740341455716,-500.0,0.00016438,2]
[354190724,1740341455726,-500.0,0.00016438,2]
[354190725,1740341455736,-500.0,0.00016438,2]
[354190726,1740341455746,-500.0,0.00016438,2]
[354190727,1740341455755,-500.0,0.00016438,2]
[354190728,1740341455764,-500.0,0.00016438,2]
[354190729,1740341455774,-500.0,0.00016438,2]
[354190730,1740341455784,-824.27,0.00016438,2]
[354190731,1740341455793,-604.7,0.00016438,2]
[354190732,1740341455803,-500.0,0.00016438,2]
[354190733,1740341455813,-1218.92,0.00016438,2]
[354190734,1740341455823,-914.387716,0.00016438,2]
[354190735,1740341455833,-914.387716,0.00016438,2]
[354190736,1740341455842,-562.5,0.00016438,2]
[354190737,1740341455852,-914.387716,0.00016438,2]
[354190738,1740341455861,-914.387716,0.00016438,2]
[354190739,1740341455871,-914.387716,0.00016438,2]
[354190740,1740341455881,-500.0,0.00016438,2]
[354190741,1740341455891,-500.0,0.00016438,2]
[354190742,1740341455901,-456.96311394,0.00016438,2]
[354190743,1740341455911,-562.95416084,0.00016438,2]
[354190744,1740341455922,-500.0,0.00016438,2]
[354190745,1740341455932,-890.71,0.00016438,2]
[354190746,1740341455942,-500.0,0.00016438,2]
[354190747,1740341455951,-500.0,0.00016438,2]
[354190748,1740341455964,-500.0,0.00016438,2]
[354190749,1740341455974,-668.94,0.00016438,2]
[354190750,1740341455985,-914.387716,0.00016438,2]
[354190751,1740341455994,-500.0,0.00016438,2]
[354190752,1740341456004,-1512.01,0.00016438,2]
[354190753,1740341456013,-914.387716,0.00016438,2]
[354190754,1740341456028,-500.0,0.00016438,2]
[354190755,1740341456039,-914.387716,0.00016438,2]
[354190756,1740341456048,-914.387716,0.00016438,2]
[354190757,1740341456058,-914.387716,0.00016438,2]
[354190758,1740341456068,-500.0,0.00016438,2]
[354190759,1740341456077,-583.33,0.00016438,2]
[354190760,1740341456087,-520.83,0.00016438,2]
[354190761,1740341456097,-500.0,0.00016438,2]
[354190762,1740341456107,-500.0,0.00016438,2]
[354190763,1740341456116,-500.0,0.00016438,2]
[354190764,1740341456126,-500.0,0.00016438,2]
[354190765,1740341456135,-500.0,0.00016438,2]
[354190766,1740341456145,-500.0,0.00016438,2]
[354190767,1740341456155,-500.0,0.00016438,2]
[354190768,1740341456166,-500.0,0.00016438,2]
[354190769,1740341456175,-500.0,0.00016438,2]
[354190770,1740341456185,-500.0,0.00016438,2]
[354190771,1740341456194,-500.0,0.00016438,2]
[354190772,1740341456204,-654.86,0.00016438,2]
[354190773,1740341456213,-500.0,0.00016438,2]
[354190774,1740341456222,-500.0,0.00016438,2]
[354190775,1740341456232,-500.0,0.00016438,2]
[354190776,1740341456241,-500.0,0.00016438,2]
[354190777,1740341456251,-500.0,0.00016438,2]
[354190778,1740341456260,-500.0,0.00016438,2]
[354190779,1740341456269,-502.68,0.00016438,2]
[354190780,1740341456279,-500.0,0.00016438,2]
[354190781,1740341456288,-701.41,0.00016438,2]
[354190782,1740341456298,-809.78,0.00016438,2]
[354190783,1740341456311,-500.0,0.00016438,2]
[354190784,1740341456320,-284.94659272,0.00016438,2]
[354190785,1740341456329,-500.0,0.00016438,2]
[354190786,1740341456339,-534.0384503,0.00016438,2]
[354190787,1740341456348,-500.0,0.00016438,2]
[354190788,1740341456358,-500.0,0.00016438,2]
[354190789,1740341456368,-1096.81,0.00016438,2]
[354190790,1740341456378,-620.24,0.00016438,2]
[354190791,1740341456575,-500.0,0.00016438,2]
[354190792,1740341456585,-543.39,0.00016438,2]
[354190793,1740341456594,-500.0,0.00016438,2]
[354190794,1740341456605,-500.0,0.00016438,2]
[354190795,1740341456617,-1176.61,0.00016438,2]
[354190796,1740341456627,-500.0,0.00016438,2]
[354190797,1740341456637,-500.0,0.00016438,2]
[354190798,1740341456648,-500.0,0.00016438,2]
[354190799,1740341456658,-500.0,0.00016438,2]
[354190800,1740341456667,-500.0,0.00016438,2]
[354190801,1740341456677,-500.0,0.00016438,2]
[354190802,1740341456687,-500.0,0.00016438,2]
[354190803,1740341456696,-522.55,0.00016438,2]
[354190804,1740341456705,-500.0,0.00016438,2]
[354190805,1740341456714,-1487.91,0.00016438,2]
[354190806,1740341456723,-500.0,0.00016438,2]
[354190807,1740341456733,-500.0,0.00016438,2]
[354190808,1740341456742,-500.0,0.00016438,2]
[354190809,1740341456751,-500.0,0.00016438,2]
[354190810,1740341456760,-500.0,0.00016438,2]
[354190811,1740341456769,-500.84408562,0.00016438,2]
[354190812,1740341456778,-500.0,0.00016438,2]
[354190813,1740341456787,-541.66,0.00016438,2]
[354190814,1740341456796,-612.19,0.00016438,2]
[354190815,1740341456805,-516.33171658,0.00016438,2]
[354190816,1740341456814,-1611.47,0.00016438,2]
[354190817,1740341456823,-1144.84,0.00016438,2]
[354190818,1740341456833,-500.0,0.00016438,2]
[354190819,1740341456842,-414.18224421,0.00016438,2]
[354190820,1740341456851,-500.0,0.00016438,2]
[354190821,1740341456861,-500.0,0.00016438,2]
[354190822,1740341456870,-500.0,0.00016438,2]
[354190823,1740341456879,-500.0,0.00016438,2]
[354190824,1740341456888,-500.0,0.00016438,2]
[354190825,1740341456898,-500.0,0.00016438,2]
[354190826,1740341456907,-500.0,0.00016438,2]
[354190827,1740341456917,-500.0,0.00016438,2]
[354190828,1740341456926,-500.0,0.00016438,2]
[354190829,1740341456936,-515.1089506,0.00016438,2]
[354190830,1740341456946,-500.0,0.00016438,2]
[354190831,1740341456955,-822.88,0.00016438,2]
[354190832,1740341456964,-500.0,0.00016438,2]
[354190833,1740341456974,-500.0,0.00016438,2]
[354190834,1740341456983,-854.68,0.00016438,2]
[354190835,1740341456993,-500.0,0.00016438,2]
[354190836,1740341457002,-1127.38,0.00016438,2]
[354190837,1740341457011,-500.0,0.00016438,2]
[354190838,1740341457020,-500.0,0.00016438,2]
[354190839,1740341457030,-500.0,0.00016438,2]
[354190840,1740341457039,-1784.4,0.00016438,2]
[354190841,1740341457048,-500.0,0.00016438,2]
[354190842,1740341457059,-500.0,0.00016438,2]
[354190843,1740341457069,-500.0,0.00016438,2]
[354190844,1740341457078,-500.0,0.00016438,2]
[354190845,1740341457087,-500.0,0.00016438,2]
[354190846,1740341457097,-500.0,0.00016438,2]
[354190847,1740341457106,-500.0,0.00016438,2]
[354190848,1740341457116,-979.16,0.00016438,2]
[354190849,1740341457125,-562.5,0.00016438,2]
[354190850,1740341457134,-1630.09,0.00016438,2]
[354190851,1740341457143,-500.0,0.00016438,2]
[354190852,1740341457152,-500.92068502,0.00016438,2]
[354190853,1740341457162,-500.0,0.00016438,2]
[354190854,1740341457171,-8814.72,0.00016438,2]
[354190855,1740341457180,-500.0,0.00016438,2]
[354190856,1740341457190,-899.01,0.00016438,2]
[354190857,1740341457199,-254.65563076,0.00016438,2]
[354190858,1740341457210,-523.95,0.00016438,2]
[354190859,1740341457220,-2186.75,0.00016438,2]
[354190860,1740341457230,-500.0,0.00016438,2]
[354190861,1740341457239,-500.0,0.00016438,2]
[354190862,1740341457248,-500.0,0.00016438,2]
[354190863,1740341457257,-500.0,0.00016438,2]
[354190864,1740341457266,-2023.46,0.00016438,2]
[354190865,1740341457275,-1465.73,0.00016438,2]
[354190866,1740341457284,-500.0,0.00016438,2]
[354190867,1740341457294,-500.0,0.00016438,2]
[354190868,1740341457303,-500.0,0.00016438,2]
[354190869,1740341457313,-500.0,0.00016438,2]
[354190870,1740341457322,-500.0,0.00016438,2]
[354190871,1740341457331,-500.0,0.00016438,2]
[354190872,1740341457340,-681.65,0.00016438,2]
[354190873,1740341457349,-500.0,0.00016438,2]
[354190874,1740341457359,-859.97,0.00016438,2]
[354190875,1740341457368,-709.09,0.00016438,2]
[354190876,1740341457377,-500.0,0.00016438,2]
[354190877,1740341457387,-223.982921,0.00016438,2]
[354190878,1740341457397,-500.0,0.00016438,2]
[354190879,1740341457406,-500.0,0.00016438,2]
[354190880,1740341457416,-223.982921,0.00016438,2]
[354190881,1740341457427,-500.0,0.00016438,2]
[354190882,1740341457436,-223.982921,0.00016438,2]
[354190883,1740341457446,-500.0,0.00016438,2]
[354190884,1740341457456,-2000.2,0.00016438,2]
[354190885,1740341457465,-223.982921,0.00016438,2]
[354190886,1740341457474,-223.982921,0.00016438,2]
[354190887,1740341457483,-500.0,0.00016438,2]
[354190888,1740341457493,-500.0,0.00016438,2]
[354190889,1740341457502,-500.0,0.00016438,2]
[354190890,1740341457512,-1708.84,0.00016438,2]
[354190891,1740341457521,-500.0,0.00016438,2]
[354190892,1740341457530,-223.982921,0.00016438,2]
[354190893,1740341457540,-223.982921,0.00016438,2]
[354190894,1740341457549,-500.4,0.00016438,2]
[354190895,1740341457558,-223.982921,0.00016438,2]
[354190896,1740341457570,-223.982921,0.00016438,2]
[354190897,1740341457579,-500.0,0.00016438,2]
[354190898,1740341457588,-223.982921,0.00016438,2]
[354190899,1740341457597,-1608.1,0.00016438,2]
[354190900,1740341457606,-500.0,0.00016438,2]
[354190901,1740341457616,-759.42,0.00016438,2]
[354190902,1740341457625,-500.0,0.00016438,2]
[354190903,1740341457635,-500.0,0.00016438,2]
[354190904,1740341457644,-500.0,0.00016438,2]
[354190905,1740341457653,-2391.72,0.00016438,2]
[354190906,1740341457663,-1149.79,0.00016438,2]
[354190907,1740341457672,-1692.38,0.00016438,2]
[354190908,1740341457682,-700.17,0.00016438,2]
[354190909,1740341457690,-500.0,0.00016438,2]
[354190910,1740341457699,-500.0,0.00016438,2]
[354190911,1740341457708,-500.0,0.00016438,2]
[354190912,1740341457717,-500.0,0.00016438,2]
[354190913,1740341457727,-907.8,0.00016438,2]
[354190914,1740341457736,-500.0,0.00016438,2]
[354190915,1740341457745,-500.0,0.00016438,2]
[354190916,1740341457754,-644.34,0.00016438,2]
[354190917,1740341457763,-520.7858144,0.00016438,2]
[354190918,1740341457772,-5709.1,0.00016438,2]
[354190919,1740341457781,-500.0,0.00016438,2]
[354190920,1740341457790,-500.0,0.00016438,2]
[354190921,1740341457799,-1232.56,0.00016438,2]
[354190922,1740341457808,-500.0,0.00016438,2]
[354190923,1740341457817,-500.0,0.00016438,2]
[354190924,1740341457826,-500.0,0.00016438,2]
[354190925,1740341457835,-306.90049626,0.00016438,2]
[354190926,1740341457844,-502.52,0.00016438,2]
[354190927,1740341457853,-3793.33,0.00016438,2]
[354190928,1740341457863,-500.0,0.00016438,2]
[354190929,1740341457871,-500.0,0.00016438,2]
[354190930,1740341457880,-518.98059076,0.00016438,2]
[354190931,1740341457889,-936.14,0.00016438,2]
[354190932,1740341457899,-500.0,0.00016438,2]
[354190933,1740341457908,-500.0,0.00016438,2]
[354190934,1740341457918,-500.0,0.00016438,2]
[354190935,1740341457927,-500.0,0.00016438,2]
[354190936,1740341457937,-692.05,0.00016438,2]
[354190937,1740341457946,-375.22731262,0.00016438,2]
[354190938,1740341457955,-516.93,0.00016438,2]
[354190939,1740341457964,-603.97,0.00016438,2]
[354190940,1740341457973,-500.0,0.00016438,2]
[354190941,1740341457982,-1311.25,0.00016438,2]
[354190942,1740341457992,-500.0,0.00016438,7]
[354190943,1740341458002,-939.11,0.00016438,2]
[354190944,1740341458011,-2773.64,0.00016438,2]
[354190945,1740341458021,-500.0,0.00016438,2]
[354190946,1740341458030,-500.0,0.00016438,2]
[354190947,1740341458039,-500.0,0.00016438,2]
[354190948,1740341458048,-474.82942959,0.00016438,2]
[354190949,1740341458057,-500.0,0.00016438,2]
[354190950,1740341458066,-1671.06,0.00016438,2]
[354190951,1740341458075,-849.92,0.00016438,2]
[354190952,1740341458085,-500.0,0.00016438,2]
[354190953,1740341458094,-520.83,0.00016438,2]
[354190954,1740341458103,-562.5,0.00016438,2]
[354190955,1740341458112,-1390.9,0.00016438,2]
[354190956,1740341458121,-500.0,0.00016438,2]
[354190957,1740341458130,-500.0,0.00016438,2]
[354190958,1740341458139,-500.0,0.00016438,2]
[354190959,1740341458149,-2910.23,0.00016438,2]
[354190960,1740341458159,-2364.76,0.00016438,2]
[354190961,1740341458168,-500.0,0.00016438,2]
[354190962,1740341458178,-500.0,0.00016438,2]
[354190963,1740341458187,-500.0,0.00016438,2]
[354190964,1740341458197,-3182.97,0.00016438,2]
[354190965,1740341458207,-500.0,0.00016438,2]
[354190966,1740341458217,-787.93,0.00016438,2]
[354190967,1740341458226,-497.6552724,0.00016438,2]
[354190968,1740341458235,-4546.98,0.00016438,2]
[354190969,1740341458244,-500.0,0.00016438,2]
[354190970,1740341458254,-500.0,0.00016438,2]
[354190971,1740341458263,-611.88,0.00016438,2]
[354190972,1740341458273,-500.0,0.00016438,2]
[354190973,1740341458283,-507.40455917,0.00016438,2]
[354190974,1740341458293,-500.0,0.00016438,2]
[354190975,1740341458302,-1786.091285,0.00016438,2]
[354190976,1740341458312,-500.0,0.00016438,2]
[354190977,1740341458321,-1786.091285,0.00016438,2]
[354190978,1740341458330,-616.13,0.00016438,2]
[354190979,1740341458339,-1786.091285,0.00016438,2]
[354190980,1740341458348,-1786.091285,0.00016438,2]
[354190981,1740341458357,-806.23,0.00016438,2]
[354190982,1740341458366,-602.34,0.00016438,2]
[354190983,1740341458375,-1786.091285,0.00016438,2]
[354190984,1740341458384,-804.56,0.00016438,2]
[354190985,1740341458393,-547.45,0.00016438,2]
[354190986,1740341458403,-1469.55,0.00016438,2]
[354190987,1740341458412,-546.8,0.00016438,2]
[354190988,1740341458421,-500.0,0.00016438,2]
[354190989,1740341458430,-1786.091285,0.00016438,2]
[354190990,1740341458439,-1786.091285,0.00016438,2]
[354190991,1740341458448,-500.0,0.00016438,2]
[354190992,1740341458457,-1786.091285,0.00016438,2]
[354190993,1740341458466,-500.0,0.00016438,2]
[354190994,1740341458475,-3687.98,0.00016438,2]
[354190995,1740341458484,-1786.091285,0.00016438,2]
[354190996,1740341458493,-1786.091285,0.00016438,2]
[354190997,1740341458503,-738.28,0.00016438,2]
[354190998,1740341458512,-956.55,0.00016438,2]
[354190999,1740341458521,-500.0,0.00016438,2]
[354191000,1740341458530,-687.87,0.00016438,2]
[354191001,1740341458539,-552.1250141,0.00016438,2]
[354191002,1740341458549,-500.0,0.00016438,2]
[354191003,1740341458558,-500.0,0.00016438,2]
[354191004,1740341458568,-500.0,0.00016438,2]
[354191005,1740341458579,-551.51,0.00016438,2]
[354191006,1740341458588,-562.5,0.00016438,2]
[354191007,1740341458597,-522.75030083,0.00016438,2]
[354191008,1740341458606,-1548.92,0.00016438,2]
[354191009,1740341458615,-500.0,0.00016438,2]
[354191010,1740341458623,-500.0,0.00016438,2]
[354191011,1740341458632,-500.0,0.00016438,2]
[354191012,1740341458641,-500.0,0.00016438,2]
[354191013,1740341458652,-1693.72,0.00016438,2]
[354191014,1740341458661,-1789.61,0.00016438,2]
[354191015,1740341458671,-731.36,0.00016438,2]
[354191016,1740341458680,-227.2556036,0.00016438,2]
[354191017,1740341458689,-500.0,0.00016438,2]
[354191018,1740341458698,-500.0,0.00016438,2]
[354191019,1740341458707,-597.2,0.00016438,2]
[354191020,1740341458717,-3336.63,0.00016438,2]
[354191021,1740341458725,-500.0,0.00016438,2]
[354191022,1740341458734,-1407.94,0.00016438,2]
[354191023,1740341458744,-500.0,0.00016438,2]
[354191024,1740341458753,-500.0,0.00016438,2]
[354191025,1740341458760,-919.05,0.00016438,2]
[354191026,1740341458769,-771.98,0.00016438,2]
[354191027,1740341458778,-500.0,0.00016438,2]
[354191028,1740341458787,-583.33,0.00016438,2]
[354191029,1740341458797,-500.0,0.00016438,2]
[354191030,1740341458806,-500.0,0.00016438,2]
[354191031,1740341458815,-1533.21,0.00016438,2]
[354191032,1740341458824,-500.0,0.00016438,2]
[354191033,1740341458833,-528.97,0.00016438,2]
[354191034,1740341458844,-519.50212414,0.00016438,2]
[354191035,1740341458855,-2285.67,0.00016438,2]
[354191036,1740341458866,-3821.35,0.00016438,2]
[354191037,1740341458877,-500.0,0.00016438,2]
[354191038,1740341458887,-983.66,0.00016438,2]
[354191039,1740341458897,-217.64186471,0.00016438,2]
[354191040,1740341458907,-2472.62,0.00016438,2]
[354191041,1740341458916,-500.0,0.00016438,2]
[354191042,1740341458925,-279.19498749,0.00016438,2]
[354191043,1740341458935,-500.0,0.00016438,2]
[354191044,1740341458944,-500.0,0.00016438,2]
[354191045,1740341458955,-1539.3,0.00016438,2]
[354191046,1740341458966,-151.0,0.00016438,2]
[354191047,1740341458976,-500.0,0.00016438,2]
[354191048,1740341458985,-1254.88,0.00016438,2]
[354191049,1740341458995,-514.85,0.00016438,2]
[354191050,1740341459004,-151.0,0.00016438,2]
[354191051,1740341459016,-500.0,0.00016438,2]
[354191052,1740341459026,-573.64,0.00016438,2]
[354191053,1740341459035,-151.0,0.00016438,2]
[354191054,1740341459044,-151.0,0.00016438,2]
[354191055,1740341459053,-151.0,0.00016438,2]
[354191056,1740341459063,-500.0,0.00016438,2]
[354191057,1740341459073,-500.0,0.00016438,2]
[354191058,1740341459083,-500.0,0.00016438,2]
[354191059,1740341459091,-500.0,0.00016438,2]
[354191060,1740341459101,-1177.46,0.00016438,2]
[354191061,1740341459111,-2327.86,0.00016438,2]
[354191062,1740341459120,-500.0,0.00016438,2]
[354191063,1740341459129,-2452.21,0.00016438,2]
[354191064,1740341459139,-500.0,0.00016438,2]
[354191065,1740341459150,-500.0,0.00016438,2]
[354191066,1740341459159,-500.0,0.00016438,2]
[354191067,1740341459170,-727.71,0.00016438,2]
[354191068,1740341459179,-500.0,0.00016438,2]
[354191069,1740341459188,-516.92,0.00016438,2]
[354191070,1740341459197,-500.0,0.00016438,2]
[354191071,1740341459206,-571.33,0.00016438,2]
[354191072,1740341459215,-558.08520068,0.00016438,2]
[354191073,1740341459224,-522.81879054,0.00016438,2]
[354191074,1740341459233,-500.0,0.00016438,2]
[354191075,1740341459242,-1687.58,0.00016438,2]
[354191076,1740341459251,-791.11,0.00016438,2]
[354191077,1740341459259,-2891.15,0.00016438,2]
[354191078,1740341459269,-500.0,0.00016438,2]
[354191079,1740341459278,-500.0,0.00016438,2]
[354191080,1740341459287,-3232.3,0.00016438,2]
[354191081,1740341459296,-4036.71,0.00016438,2]
[354191082,1740341459305,-1381.34,0.00016438,2]
[354191083,1740341459314,-529.13766474,0.00016438,2]
[354191084,1740341459322,-500.0,0.00016438,2]
[354191085,1740341459331,-500.0,0.00016438,2]
[354191086,1740341459340,-500.0,0.00016438,2]
[354191087,1740341459349,-878.37,0.00016438,2]
[354191088,1740341459358,-2049.43,0.00016438,2]
[354191089,1740341459367,-570.63,0.00016438,2]
[354191090,1740341459376,-500.0,0.00016438,2]
[354191091,1740341459385,-1962.51,0.00016438,2]
[354191092,1740341459394,-3642.41,0.00016438,2]
[354191093,1740341459403,-500.0,0.00016438,2]
[354191094,1740341459412,-591.8,0.00016438,2]
[354191095,1740341459421,-2413.05,0.00016438,2]
[354191096,1740341459431,-500.0,0.00016438,2]
[354191097,1740341459440,-500.0,0.00016438,2]
[354191098,1740341459449,-562.5,0.00016438,2]
[354191099,1740341459459,-500.0,0.00016438,2]
[354191100,1740341459468,-1922.43,0.00016438,2]
[354191101,1740341459477,-500.0,0.00016438,2]
[354191102,1740341459487,-1439.32,0.00016438,2]
[354191103,1740341459496,-606.8,0.00016438,2]
[354191104,1740341459505,-500.0,0.00016438,2]
[354191105,1740341459514,-500.0,0.00016438,2]
[354191106,1740341459523,-3993.51,0.00016438,2]
[354191107,1740341459532,-954.47,0.00016438,2]
[354191108,1740341459540,-500.0,0.00016438,2]
[354191109,1740341459549,-1769.9,0.00016438,2]
[354191110,1740341459558,-500.0,0.00016438,2]
[354191111,1740341459569,-500.0,0.00016438,2]
[354191112,1740341459579,-666.66,0.00016438,2]
[354191113,1740341459587,-1545.69,0.00016438,2]
[354191114,1740341459597,-2112.1,0.00016438,2]
[354191115,1740341459606,-500.0,0.00016438,2]
[354191116,1740341459795,-500.0,0.00016438,2]
[354191117,1740341459806,-703.14,0.00016438,2]
[354191118,1740341459816,-151.0,0.00016438,2]
[354191119,1740341459827,-286.657702,0.00016438,2]
[354191120,1740341459836,-1061.53,0.00016438,2]
[354191121,1740341459848,-500.0,0.00016438,2]
[354191122,1740341459858,-1655.08,0.00016438,2]
[354191123,1740341459868,-1180.25,0.00016438,2]
[354191124,1740341459877,-3930.58,0.00016438,2]
[354191125,1740341459886,-500.0,0.00016438,2]
[354191126,1740341459895,-500.0,0.00016438,2]
[354191127,1740341459905,-160.50137,0.00016438,2]
[354191128,1740341459914,-500.0,0.00016438,2]
[354191129,1740341459923,-160.50137,0.00016438,2]
[354191130,1740341459933,-160.50137,0.00016438,2]
[354191131,1740341459942,-500.0,0.00016438,2]
[354191132,1740341459951,-4574.02,0.00016438,2]
[354191133,1740341459961,-160.50137,0.00016438,2]
[354191134,1740341459970,-500.0,0.00016438,2]
[354191135,1740341459980,-160.50137,0.00016438,2]
[354191136,1740341459990,-1968.05,0.00016438,2]
[354191137,1740341459999,-582.49,0.00016438,2]
[354191138,1740341460009,-550.12,0.00016438,2]
[354191139,1740341460018,-304.454693,0.00016438,2]
[354191140,1740341460027,-304.454693,0.00016438,2]
[354191141,1740341460036,-1942.2,0.00016438,2]
[354191142,1740341460046,-304.454693,0.00016438,2]
[354191143,1740341460056,-500.0,0.00016438,2]
[354191144,1740341460066,-500.0,0.00016438,2]
[354191145,1740341460075,-160.50137,0.00016438,2]
[354191146,1740341460085,-500.0,0.00016438,2]
[354191147,1740341460095,-160.50137,0.00016438,2]
[354191148,1740341460104,-304.454693,0.00016438,2]
[354191149,1740341460114,-160.50137,0.00016438,2]
[354191150,1740341460123,-304.454693,0.00016438,2]
[354191151,1740341460132,-160.50137,0.00016438,2]
[354191152,1740341460142,-610.42,0.00016438,2]
[354191153,1740341460151,-160.50137,0.00016438,2]
[354191154,1740341460160,-500.0,0.00016438,2]
[354191155,1740341460169,-900.61,0.00016438,2]
[354191156,1740341460179,-500.0,0.00016438,2]
[354191157,1740341460188,-520.83,0.00016438,2]
[354191158,1740341460197,-500.0,0.00016438,2]
[354191159,1740341460207,-304.454693,0.00016438,2]
[354191160,1740341460216,-304.454693,0.00016438,2]
[354191161,1740341460225,-304.454693,0.00016438,2]
[354191162,1740341460235,-689.05,0.00016438,2]
[354191163,1740341460244,-500.0,0.00016438,2]
[354191164,1740341460253,-304.454693,0.00016438,2]
[354191165,1740341460263,-516.86581612,0.00016438,2]
[354191166,1740341460272,-304.454693,0.00016438,2]
[354191167,1740341460283,-1082.91,0.00016438,2]
[354191168,1740341460292,-500.0,0.00016438,2]
[354191169,1740341460301,-500.0,0.00016438,2]
[354191170,1740341460310,-501.65,0.00016438,2]
[354191171,1740341460320,-586.68,0.00016438,2]
[354191172,1740341460331,-909.3,0.00016438,2]
[354191173,1740341460340,-2595.45,0.00016438,2]
[354191174,1740341460351,-500.0,0.00016438,2]
[354191175,1740341460360,-500.0,0.00016438,2]
[354191176,1740341460372,-3442.22,0.00016438,2]
[354191177,1740341460382,-505.34,0.00016438,2]
[354191178,1740341460392,-546.22,0.00016438,2]
[354191179,1740341460403,-151.0,0.00016438,2]
[354191180,1740341460411,-151.552059,0.00016438,2]
[354191181,1740341460421,-1008.75,0.00016438,2]
[354191182,1740341460431,-559.60016387,0.00016438,2]
[354191183,1740341460441,-500.0,0.00016438,2]
[354191184,1740341460450,-500.0,0.00016438,2]
[354191185,1740341460459,-2051.79,0.00016438,2]
[354191186,1740341460468,-500.0,0.00016438,2]
[354191187,1740341460477,-500.0,0.00016438,2]
[354191188,1740341460486,-8566.318121,0.00016438,2]
[354191189,1740341460494,-3479.79,0.00016438,2]
[354191190,1740341460503,-500.0,0.00016438,2]
[354191191,1740341460512,-8566.318121,0.00016438,2]
[354191192,1740341460521,-500.0,0.00016438,2]
[354191193,1740341460530,-607.79,0.00016438,2]
[354191194,1740341460538,-8566.318121,0.00016438,2]
[354191195,1740341460547,-2011.19,0.00016438,2]
[354191196,1740341460556,-8566.318121,0.00016438,2]
[354191197,1740341460565,-8566.318121,0.00016438,2]
[354191198,1740341460578,-6258.42,0.00016438,2]
[354191199,1740341460587,-713.7,0.00016438,2]
[354191200,1740341460597,-500.0,0.00016438,2]
[354191201,1740341460606,-8566.318121,0.00016438,2]
[354191202,1740341460615,-500.0,0.00016438,2]
[354191203,1740341460623,-8566.318121,0.00016438,2]
[354191204,1740341460633,-500.0,0.00016438,2]
[354191205,1740341460641,-8566.318121,0.00016438,2]
[354191206,1740341460652,-8566.318121,0.00016438,2]
[354191207,1740341460662,-151.0,0.00016438,2]
[354191208,1740341460671,-8566.318121,0.00016438,2]
[354191209,1740341460680,-151.0,0.00016438,2]
[354191210,1740341460689,-151.0,0.00016438,2]
[354191211,1740341460698,-500.0,0.00016438,2]
[354191212,1740341460708,-151.0,0.00016438,2]
[354191213,1740341460716,-2101.47,0.00016438,2]
[354191214,1740341460726,-619.13,0.00016438,2]
[354191215,1740341460735,-151.0,0.00016438,2]